bitfinex/quotes_SOLUSD_20241125
["timestamp","ask_amount","ask_price","bid_price","bid_amount"]
[1732543014369,23.4025,248.48,248.4,30.0]
[1732543021784,18.372,248.48,248.41,23.776884]
[1732543023889,23.4025,248.48,248.4,30.0]
[1732543026396,33.4636,248.48,248.4,30.0]
[1732543027696,20.0,248.44,248.4,8.46535976]
[1732543027888,20.0,248.41,248.4,0.38986967]
[1732543028093,20.0,248.4,248.21,4.0288]
[1732543028998,20.0,248.4,248.25,20.0]
[1732543029184,20.0,248.4,248.26,23.776884]
[1732543029569,7.0453,248.39,248.26,23.776884]
[1732543032201,20.0,248.35,248.26,23.776884]
[1732543032494,15.191,248.34,248.16,4.0295]
[1732543033292,20.0,248.27,248.13,1.61458086]
[1732543033495,20.0,248.27,248.08,4.0309]
[1732543034080,2.014,248.26,248.08,4.0309]
[1732543034286,20.0,248.25,248.08,4.0309]
[1732543034487,20.0,248.25,248.09,43.776884]
[1732543035306,20.0,248.21,248.07,1.57855764]
[1732543035607,20.0,248.21,248.05,4.0314]
[1732543035608,20.0,248.21,248.05,11.66636779]
[1732543036092,2.0145,248.2,248.05,15.69766779]
[1732543036292,22.252,248.18,247.98,20.133724]
[1732543036512,22.252,248.18,247.99,4.0323]
[1732543037285,20.0,248.15,247.99,4.0323]
[1732543037595,20.0,248.15,248.0,23.776884]
[1732543038185,2.0149,248.14,248.0,23.776884]
[1732543038877,2.0149,248.14,247.98,27.809384]
[1732543039303,7.0523,248.14,247.98,39.47575179]
[1732543039904,7.0523,248.14,248.01,23.776884]
[1732543040110,7.0523,248.14,248.02,23.776884]
[1732543040502,7.0523,248.14,248.01,23.276884]
[1732543040982,2.0149,248.14,248.04,11.66636779]
[1732543041182,20.0,248.1,247.95,4.63754634]
[1732543041382,21.6708,248.13,247.86,4.0345]
[1732543041383,20.0,248.06,247.86,4.0345]
[1732543041601,20.0,248.06,247.91,11.66636779]
[1732543041809,20.0,248.06,247.93,11.66636779]
[1732543042305,2.0157,248.05,247.92,11.66636779]
[1732543042981,2.0157,248.05,247.96,11.66636779]
[1732543043203,2.0156,248.07,248.0,11.66636779]
[1732543043388,2.0156,248.07,248.01,11.66636779]
[1732543043587,17.5755,248.09,248.01,11.66636779]
[1732543045006,2.0146,248.18,248.07,11.66636779]
[1732543045310,2.0146,248.18,248.05,11.66636779]
[1732543045608,7.0512,248.18,248.02,23.776884]
[1732543046510,20.0,248.15,248.02,23.776884]
[1732543047395,20.0,248.15,247.98,11.66636779]
[1732543047581,23.776884,248.14,247.97,11.66636779]
[1732543047786,16.0498,248.1,247.97,11.66636779]
[1732543048396,20.0,248.06,247.93,15.69966779]
[1732543048715,20.0,248.06,247.93,4.0333]
[1732543048893,20.0,248.06,247.86,4.0345]
[1732543049211,20.0,248.06,247.93,11.66636779]
[1732543050206,20.0,248.06,247.92,11.66636779]
[1732543050414,2.0157,248.05,247.89,23.776884]
[1732543050715,2.0157,248.05,247.92,23.776884]
[1732543051018,2.0157,248.05,247.93,11.66636779]
[1732543051719,7.055,248.05,247.92,35.44325179]
[1732543051887,7.055,248.05,247.92,11.66636779]
[1732543052094,7.055,248.05,247.93,11.66636779]
[1732543052294,7.055,248.05,247.94,11.66636779]
[1732543052503,7.055,248.05,247.95,11.66636779]
[1732543053098,7.055,248.05,247.93,11.66636779]
[1732543053295,16.2642,248.04,247.92,11.66636779]
[1732543054000,16.2642,248.04,247.93,11.66636779]
[1732543054203,16.2642,248.04,247.94,35.44325179]
[1732543054412,16.2642,248.04,247.97,11.66636779]
[1732543054611,16.2642,248.04,247.96,11.66636779]
[1732543055622,2.0156,248.07,247.98,11.66636779]
[1732543055932,8.016,248.09,247.99,35.44325179]
[1732543056225,8.016,248.09,248.01,11.66636779]
[1732543056721,16.1086,248.1,248.03,11.66636779]
[1732543056902,16.1086,248.1,248.04,11.66636779]
[1732543057108,6.3653,248.15,248.06,11.66636779]
[1732543057512,8.3802,248.15,248.06,15.69756779]
[1732543057815,6.3653,248.15,248.07,23.776884]
[1732543058042,6.3653,248.15,248.08,11.66636779]
[1732543058220,6.3653,248.15,248.07,35.44325179]
[1732543058928,16.6272,248.16,248.07,35.44325179]
[1732543059308,2.0149,248.15,248.05,11.66636779]
[1732543059612,2.0149,248.15,248.06,23.776884]
[1732543060025,2.0149,248.15,248.06,35.44325179]
[1732543060324,2.0149,248.15,248.06,23.776884]
[1732543060503,2.0149,248.15,248.05,23.776884]
[1732543061011,2.0149,248.15,248.05,20.0]
[1732543061523,2.0149,248.15,248.03,20.0]
[1732543061901,2.0149,248.15,248.03,11.66636779]
[1732543062223,2.0149,248.15,248.04,11.66636779]
[1732543062828,2.0149,248.15,248.04,23.776884]
[1732543063225,2.0149,248.15,248.03,4.0316]
[1732543063423,2.0149,248.15,248.04,23.776884]
[1732543064018,2.0149,248.15,248.01,15.69836779]
[1732543064214,7.0521,248.15,248.02,23.776884]
[1732543064533,7.0521,248.15,248.0,23.776884]
[1732543064708,7.0521,248.15,247.99,23.776884]
[1732543065105,7.0521,248.15,247.99,39.47555179]
[1732543065410,7.0521,248.15,247.99,27.809184]
[1732543065821,7.0521,248.15,247.99,39.47555179]
[1732543066007,7.0521,248.15,248.02,23.776884]
[1732543066202,7.0521,248.15,248.02,27.808684]
[1732543066624,7.0521,248.15,248.02,23.776884]
[1732543067518,7.0521,248.15,248.02,27.808684]
[1732543068127,2.0149,248.15,248.02,11.66636779]
[1732543068335,2.0149,248.15,248.01,23.776884]
[1732543068727,7.0521,248.15,248.02,35.44325179]
[1732543068909,7.0521,248.15,248.03,11.66636779]
[1732543069431,7.0521,248.15,248.02,11.66636779]
[1732543069627,7.0521,248.15,248.02,15.69816779]
[1732543069820,7.0521,248.15,248.02,4.0318]
[1732543070334,7.0521,248.15,248.03,11.66636779]
[1732543070639,2.0149,248.15,248.05,23.776884]
[1732543070931,2.0149,248.15,248.03,23.776884]
[1732543071415,2.0149,248.15,248.03,35.44325179]
[1732543071613,2.0149,248.15,248.05,23.776884]
[1732543071831,2.0149,248.15,248.05,35.44325179]
[1732543072036,2.0149,248.15,248.06,11.66636779]
[1732543072211,2.0149,248.15,248.07,23.776884]
[1732543073108,18.642,248.16,248.07,23.776884]
[1732543073321,18.642,248.16,248.05,23.776884]
[1732543073821,18.642,248.16,248.07,23.776884]
[1732543074025,16.6272,248.16,248.07,23.776884]
[1732543074220,18.642,248.16,248.07,23.776884]
[1732543074423,23.679,248.16,247.92,14.1173]
[1732543074633,23.679,248.16,247.98,11.66636779]
[1732543075331,20.0,248.12,247.94,11.66636779]
[1732543075509,20.0,248.12,247.98,11.66636779]
[1732543075708,20.0,248.1,247.99,4.0324]
[1732543076442,20.0,248.1,247.96,11.66636779]
[1732543076443,20.0,248.1,247.97,4.0327]
[1732543076728,7.0532,248.11,247.98,23.776884]
[1732543077107,20.0,248.08,247.92,4.0333]
[1732543077314,20.0,248.07,247.92,15.69966779]
[1732543077526,20.0,248.07,247.94,11.66636779]
[1732543077808,16.6289,248.1,247.95,15.69936779]
[1732543077809,2.0153,248.09,247.95,15.69936779]
[1732543078340,7.0537,248.09,247.92,11.66636779]
[1732543078631,7.0537,248.09,247.94,11.66636779]
[1732543079011,7.0537,248.09,247.9,14.1185]
[1732543079012,6.5972,248.05,247.9,4.0338]
[1732543080110,2.0158,248.04,247.9,4.0338]
[1732543080307,15.6029,248.03,247.85,4.0346]
[1732543080511,15.6029,248.03,247.87,11.66636779]
[1732543081038,15.6029,248.03,247.88,11.66636779]
[1732543081233,15.6029,248.03,247.89,11.66636779]
[1732543081534,2.0159,248.02,247.89,15.70026779]
[1732543081721,2.0159,248.02,247.9,11.66636779]
[1732543082113,2.0159,248.02,247.89,4.0339]
[1732543082307,2.0159,248.02,247.9,23.776884]
[1732543082614,2.0159,248.02,247.91,4.0337]
[1732543083030,2.0159,248.02,247.92,23.776884]
[1732543083230,2.0159,248.02,247.86,4.0345]
[1732543083435,2.0159,248.02,247.89,23.776884]
[1732543083641,2.0159,248.02,247.88,20.0]
[1732543083827,2.0159,248.02,247.88,31.66636779]
[1732543084144,2.0159,248.02,247.88,20.0]
[1732543084340,2.0159,248.02,247.89,20.0]
[1732543084943,2.0159,248.02,247.9,20.0]
[1732543085927,2.0159,248.02,247.89,43.776884]
[1732543086230,2.0159,248.02,247.89,23.776884]
[1732543086636,2.0159,248.02,247.88,23.776884]
[1732543086842,2.0159,248.02,247.9,23.776884]
[1732543087142,15.6029,248.03,247.93,23.776884]
[1732543087438,15.6029,248.03,247.96,11.66636779]
[1732543087643,1.55881135,248.09,247.98,35.44325179]
[1732543087644,15.7577,248.09,247.98,35.44325179]
[1732543087950,15.7577,248.09,248.04,11.66636779]
[1732543088246,15.7577,248.16,248.06,11.66636779]
[1732543088421,6.2126,248.18,248.1,31.66636779]
[1732543088622,6.2126,248.18,248.12,4.0303]
[1732543088936,6.2126,248.18,248.1,20.0]
[1732543089121,8.2272,248.18,248.1,20.0]
[1732543089322,8.2272,248.18,248.08,4.0308]
[1732543089638,15.7577,248.22,248.08,4.0308]
[1732543089825,2.0145,248.2,248.09,23.776884]
[1732543090439,2.0145,248.2,248.09,20.0]
[1732543090617,2.0145,248.2,247.94,10.0]
[1732543090813,2.0145,248.2,248.03,20.0]
[1732543091737,20.0,248.18,248.03,20.0]
[1732543091919,2.0147,248.17,248.03,24.0317]
[1732543092122,2.0147,248.17,248.04,23.776884]
[1732543093026,2.0147,248.17,248.04,27.808384]
[1732543093239,2.0147,248.17,248.03,20.0]
[1732543093240,7.0515,248.17,248.03,20.0]
[1732543093449,20.0,248.14,248.0,4.0322]
[1732543093619,2.0147,248.17,248.01,11.66636779]
[1732543094016,2.0147,248.17,248.04,20.0]
[1732543094243,2.0147,248.17,248.05,20.0]
[1732543094732,2.0147,248.17,248.03,20.0]
[1732543095134,2.0147,248.17,248.04,27.808484]
[1732543095326,15.7577,248.22,248.14,23.776884]
[1732543095523,15.7577,248.22,248.11,11.66636779]
[1732543095727,17.772,248.22,248.12,23.776884]
[1732543096929,17.772,248.22,248.12,27.807184]
[1732543097243,17.772,248.22,248.12,23.776884]
[1732543097445,17.772,248.22,248.11,23.776884]
[1732543098451,22.8078,248.22,248.06,4.0311]
[1732543098618,22.8078,248.22,248.06,11.66636779]
[1732543098825,22.8078,248.22,248.08,11.66636779]
[1732543099348,17.772,248.22,248.08,11.66636779]
[1732543099833,17.772,248.22,248.09,23.776884]
[1732543100365,17.772,248.22,248.1,11.66636779]
[1732543101043,17.772,248.22,248.09,39.47395179]
[1732543101434,22.8078,248.22,248.09,23.776884]
[1732543102023,22.8078,248.22,248.08,20.0]
[1732543102741,22.8078,248.22,248.07,20.0]
[1732543103749,2.0146,248.18,248.06,23.776884]
[1732543103935,2.0146,248.18,248.03,4.0317]
[1732543104133,2.0146,248.18,248.04,11.66636779]
[1732543105164,7.0512,248.18,248.05,4.0314]
[1732543106254,7.0512,248.18,248.02,31.66636779]
[1732543106255,7.0512,248.18,248.03,4.0317]
[1732543106559,7.0512,248.18,248.04,23.776884]
[1732543107340,2.0146,248.18,248.05,23.776884]
[1732543108447,2.0146,248.18,248.07,23.776884]
[1732543109440,2.0144,248.21,248.08,4.0309]
[1732543110055,2.0144,248.21,248.09,23.776884]
[1732543110261,2.0144,248.21,248.08,4.0309]
[1732543110961,2.0144,248.21,248.09,23.776884]
[1732543111966,7.0504,248.21,248.08,20.0]
[1732543112537,20.0,248.18,248.07,23.776884]
[1732543112741,20.0,248.18,248.04,4.0314]
[1732543113537,2.0147,248.17,248.03,15.69806779]
[1732543114161,2.0147,248.17,248.04,23.776884]
[1732543114747,2.0147,248.17,248.06,23.776884]
[1732543116236,7.0515,248.17,248.03,23.776884]
[1732543116564,16.0552,248.16,248.03,23.776884]
[1732543117542,2.0149,248.15,247.99,11.66636779]
[1732543117744,6.533,248.14,247.98,4.0325]
[1732543119168,2.015,248.13,248.0,4.0322]
[1732543119347,2.015,248.13,248.02,11.66636779]
[1732543119544,2.015,248.13,248.03,23.776884]
[1732543120873,2.015,248.13,248.03,27.808484]
[1732543122956,6.533,248.14,248.05,23.776884]
[1732543123163,2.0149,248.15,248.05,23.776884]
[1732543123367,16.0552,248.16,248.05,23.776884]
[1732543123553,16.0552,248.16,248.04,11.66636779]
[1732543123554,16.0552,248.16,248.07,23.776884]
[1732543123879,18.07,248.16,248.07,23.776884]
[1732543124254,16.0552,248.16,248.08,11.66636779]
[1732543124463,16.0552,248.16,248.09,23.776884]
[1732543124671,8.176,248.2,248.11,23.776884]
[1732543125371,8.176,248.2,248.1,23.776884]
[1732543125969,3.5694262,248.22,248.1,35.44325179]
[1732543126179,3.5694262,248.22,248.1,23.776884]
[1732543126767,3.5694262,248.22,248.1,27.807284]
[1732543128461,20.0,248.18,248.08,23.776884]
[1732543128674,20.0,248.18,248.07,23.776884]
[1732543128980,2.0147,248.18,248.07,27.807884]
[1732543129379,2.0147,248.18,248.02,35.75636779]
[1732543129577,2.0147,248.18,248.05,20.0]
[1732543129788,2.0147,248.18,248.07,20.0]
[1732543130581,2.0145,248.2,248.07,20.0]
[1732543130757,2.0145,248.2,248.08,23.776884]
[1732543133376,20.0,248.17,248.08,23.776884]
[1732543134579,2.0148,248.16,248.08,23.776884]
[1732543135883,2.0147,248.18,248.07,23.776884]
[1732543137083,21.4077,248.21,248.07,23.776884]
[1732543137084,2.0145,248.2,248.07,23.776884]
[1732543137782,2.0145,248.2,248.07,27.807884]
[1732543138983,2.0145,248.2,248.07,39.48746537]
[1732543140260,2.0145,248.2,248.07,27.807884]
[1732543142482,7.0507,248.2,248.1,23.776884]
[1732543142690,7.0507,248.2,248.01,4.032]
[1732543142859,7.0507,248.2,248.03,20.0]
[1732543143374,7.0507,248.2,248.05,20.0]
[1732543143964,7.0507,248.2,248.05,23.776884]
[1732543144165,7.0507,248.2,248.06,11.67958137]
[1732543144468,2.0145,248.2,248.08,23.776884]
[1732543145075,2.0145,248.2,248.07,23.776884]
[1732543145273,2.0145,248.2,248.06,23.776884]
[1732543145596,2.0145,248.2,248.05,23.776884]
[1732543145774,7.0507,248.2,248.05,23.776884]
[1732543146465,7.0507,248.2,248.07,20.0]
[1732543146669,7.0507,248.2,248.04,23.776884]
[1732543146883,7.0507,248.2,248.03,20.0]
[1732543147887,7.0507,248.2,248.04,20.0]
[1732543148194,7.0507,248.2,248.05,23.776884]
[1732543148383,7.0507,248.2,248.05,35.45646537]
[1732543149294,2.0145,248.2,248.09,23.776884]
[1732543149491,2.0145,248.2,248.08,20.0]
[1732543149797,2.0145,248.2,248.09,23.776884]
[1732543150466,2.0145,248.2,248.07,23.776884]
[1732543151089,2.0145,248.2,248.07,39.48746537]
[1732543152383,17.1418,248.21,248.1,31.67958137]
[1732543152592,17.1418,248.21,248.11,23.776884]
[1732543152993,15.1274,248.21,248.13,23.776884]
[1732543153697,17.1418,248.21,248.13,23.776884]
[1732543153873,17.1418,248.21,248.11,23.776884]
[1732543155797,17.1418,248.21,248.11,27.807284]
[1732543157795,17.1418,248.21,248.11,23.776884]
[1732543161308,22.1778,248.21,248.11,23.776884]
[1732543165386,22.1778,248.21,248.03,20.0]
[1732543165712,6.322,248.2,248.08,20.0]
[1732543166410,2.0148,248.16,247.97,4.0327]
[1732543166609,2.0148,248.16,248.02,7.47270031]
[1732543167383,7.0518,248.16,248.02,7.47270031]
[1732543167881,7.0518,248.16,248.04,7.47270031]
[1732543168083,7.0518,248.16,248.05,23.776884]
[1732543168484,15.612,248.15,248.05,23.776884]
[1732543169106,15.612,248.15,248.04,23.776884]
[1732543169805,15.612,248.15,248.02,31.24958431]
[1732543170106,2.0149,248.14,248.02,31.24958431]
[1732543170488,2.0149,248.14,248.04,23.776884]
[1732543171097,2.0149,248.14,248.03,23.776884]
[1732543171602,2.0149,248.14,248.02,31.24958431]
[1732543172182,7.0523,248.14,248.02,31.24958431]
[1732543172381,7.0523,248.14,248.02,23.776884]
[1732543172989,6.3624,248.1,247.93,4.0333]
[1732543173189,6.3624,248.1,247.98,7.47270031]
[1732543173391,6.3624,248.1,247.91,0.60470298]
[1732543173597,2.0153,248.09,247.96,7.47270031]
[1732543173897,2.0153,248.09,247.98,7.47270031]
[1732543174301,7.0537,248.09,247.98,7.47270031]
[1732543175306,2.0153,248.09,248.02,23.776884]
[1732543176304,2.0153,248.09,248.01,23.776884]
[1732543176612,2.0153,248.09,248.02,7.47270031]
[1732543176817,8.3777,248.1,248.04,7.47270031]
[1732543178409,6.3624,248.1,248.05,23.776884]
[1732543178602,2.0152,248.11,248.05,23.776884]
[1732543179606,2.0152,248.11,248.04,23.776884]
[1732543180312,2.0152,248.11,248.0,23.776884]
[1732543180520,7.0524,248.14,248.03,23.776884]
[1732543182705,7.0524,248.14,248.01,23.776884]
[1732543183997,20.0,248.11,247.99,23.776884]
[1732543184201,20.0,248.11,247.97,23.776884]
[1732543184706,16.0498,248.1,247.97,23.776884]
[1732543184914,16.0498,248.1,247.96,23.776884]
[1732543185112,16.0498,248.1,247.94,7.47270031]
[1732543185113,16.0498,248.1,247.95,23.776884]
[1732543185415,16.0498,248.1,247.95,31.24958431]
[1732543185652,16.0498,248.1,247.97,23.776884]
[1732543185794,16.0498,248.1,247.97,7.47270031]
[1732543185994,7.0537,248.09,247.95,31.24958431]
[1732543186196,7.0537,248.09,247.95,23.776884]
[1732543186425,7.0537,248.09,247.87,4.0343]
[1732543186426,6.5244,248.05,247.87,4.0343]
[1732543186606,6.5244,248.05,247.91,7.47270031]
[1732543187002,6.5244,248.05,247.87,4.0343]
[1732543187206,15.214,248.04,247.89,7.47270031]
[1732543187430,15.214,248.04,247.88,7.47270031]
[1732543188119,7.0555,248.03,247.88,7.47270031]
[1732543189104,7.0555,248.03,247.88,23.776884]
[1732543189500,7.0555,248.03,247.87,23.776884]
[1732543189726,20.0,248.0,247.87,23.776884]
[1732543190108,7.0567,247.99,247.87,23.776884]
[1732543190614,7.0567,247.99,247.87,7.47270031]
[1732543190997,7.0567,247.99,247.88,23.776884]
[1732543191509,7.0567,247.99,247.86,31.24958431]
[1732543191908,7.0567,247.99,247.86,23.776884]
[1732543192127,7.0567,247.99,247.78,4.0358]
[1732543192128,6.5623,247.97,247.78,4.0358]
[1732543192428,6.5623,247.97,247.81,7.47270031]
[1732543192928,20.0,247.94,247.8,7.47270031]
[1732543193230,20.0,247.94,247.77,4.64100541]
[1732543193433,20.0,247.94,247.78,7.47270031]
[1732543193724,2.0166,247.93,247.78,7.47270031]
[1732543194033,7.0583,247.93,247.79,31.24958431]
[1732543194325,7.0583,247.93,247.79,23.776884]
[1732543194497,7.0583,247.93,247.79,31.24958431]
[1732543194703,7.0583,247.93,247.79,23.776884]
[1732543195027,16.3154,247.92,247.82,23.776884]
[1732543195719,2.0168,247.91,247.82,23.776884]
[1732543197207,7.0589,247.91,247.82,23.776884]
[1732543198424,7.0589,247.91,247.76,7.47270031]
[1732543198738,7.0589,247.91,247.79,20.0]
[1732543199031,7.0589,247.91,247.8,23.776884]
[1732543201027,7.0589,247.91,247.79,20.0]
[1732543201325,2.0168,247.91,247.79,31.24958431]
[1732543201635,2.0168,247.91,247.81,31.24958431]
[1732543201817,2.0168,247.91,247.81,7.47270031]
[1732543202019,2.0168,247.91,247.79,23.776884]
[1732543202429,7.0589,247.91,247.79,23.776884]
[1732543202725,7.0589,247.91,247.77,31.24958431]
[1732543203310,7.0589,247.91,247.78,7.47270031]
[1732543203511,7.0589,247.91,247.79,23.776884]
[1732543203705,7.0589,247.91,247.79,31.24958431]
[1732543203909,7.0589,247.91,247.81,7.47270031]
[1732543204134,18.3321,247.92,247.82,31.24958431]
[1732543204341,16.3154,247.92,247.85,7.47270031]
[1732543204544,16.3154,247.92,247.87,23.776884]
[1732543204714,2.0168,247.91,247.87,23.776884]
[1732543204910,2.0168,247.91,247.86,23.776884]
[1732543205134,2.0168,247.91,247.75,24.09]
[1732543205333,2.0168,247.91,247.75,23.776884]
[1732543205538,2.0168,247.91,247.76,7.47270031]
[1732543205725,2.0168,247.91,247.77,7.47270031]
[1732543206241,2.0168,247.91,247.78,7.47270031]
[1732543206539,7.0589,247.91,247.78,7.47270031]
[1732543206737,7.0589,247.91,247.8,31.24958431]
[1732543207327,7.0589,247.91,247.8,23.776884]
[1732543208738,7.0589,247.91,247.75,20.0]
[1732543208922,7.0589,247.91,247.75,27.47270031]
[1732543209117,17.1432,247.91,247.75,20.0]
[1732543209319,17.1432,247.91,247.75,27.47270031]
[1732543209721,6.4411,247.9,247.71,20.0]
[1732543209918,15.6294,247.86,247.68,4.0373]
[1732543210144,15.6294,247.86,247.68,7.47270031]
[1732543210333,15.6294,247.86,247.71,7.47270031]
[1732543211032,7.0606,247.85,247.7,7.47270031]
[1732543211436,7.0606,247.85,247.71,7.47270031]
[1732543211847,7.0606,247.85,247.7,7.47270031]
[1732543212230,7.0606,247.85,247.72,7.47270031]
[1732543212423,7.0606,247.85,247.73,7.47270031]
[1732543212928,2.0173,247.85,247.74,7.47270031]
[1732543213144,2.0173,247.85,247.73,7.47270031]
[1732543213740,7.0606,247.85,247.71,0.60527586]
[1732543214052,7.0606,247.85,247.7,0.60530573]
[1732543214253,7.0606,247.85,247.72,7.47270031]
[1732543214551,7.0606,247.85,247.7,0.60530573]
[1732543214849,7.0606,247.85,247.76,7.47270031]
[1732543215054,7.0606,247.85,247.75,7.47270031]
[1732543215543,7.0606,247.85,247.72,7.47270031]
[1732543215749,7.0606,247.85,247.73,7.47270031]
[1732543215950,7.0606,247.85,247.74,7.47270031]
[1732543216254,7.0606,247.85,247.64,0.60528373]
[1732543216436,17.1473,247.85,247.68,7.47270031]
[1732543216746,15.1745,247.83,247.64,4.64318373]
[1732543216925,15.1745,247.83,247.7,7.47270031]
[1732543217124,15.1745,247.83,247.69,7.47270031]
[1732543217547,15.1745,247.83,247.7,7.47270031]
[1732543217748,15.1745,247.83,247.71,7.47270031]
[1732543217951,2.0175,247.82,247.71,7.47270031]
[1732543218134,2.0175,247.82,247.73,7.47270031]
[1732543218557,2.0175,247.82,247.72,0.60534829]
[1732543218728,2.0175,247.82,247.67,20.0]
[1732543218729,2.0175,247.82,247.75,7.47270031]
[1732543218936,2.0175,247.82,247.74,7.47270031]
[1732543220354,15.1745,247.83,247.78,7.47270031]
[1732543220528,5.0426,247.89,247.75,0.60526964]
[1732543220529,2.0173,247.85,247.79,7.47270031]
[1732543220730,2.0173,247.85,247.73,20.0]
[1732543220947,2.0173,247.85,247.78,7.47270031]
[1732543221148,12.0173,247.85,247.73,20.0]
[1732543221351,2.0173,247.85,247.74,7.47270031]
[1732543221530,2.0173,247.85,247.77,7.47270031]
[1732543221729,2.0173,247.85,247.79,7.47270031]
[1732543222061,2.0173,247.85,247.69,0.60521342]
[1732543222234,2.0173,247.85,247.77,7.47270031]
[1732543222440,2.0173,247.85,247.78,7.47270031]
[1732543222741,12.4206,247.87,247.78,7.47270031]
[1732543222941,12.4206,247.87,247.76,7.47270031]
[1732543223248,10.0,247.85,247.77,20.0]
[1732543223448,10.0,247.84,247.77,20.0]
[1732543223762,10.0,247.84,247.76,20.0]
[1732543224057,10.0,247.84,247.73,7.47270031]
[1732543224058,10.0,247.83,247.71,0.60526323]
[1732543224240,10.0,247.83,247.71,7.47270031]
[1732543225053,12.4211,247.82,247.67,0.60526323]
[1732543225246,15.5709,247.78,247.68,7.47270031]
[1732543225432,15.5709,247.78,247.67,7.47270031]
[1732543225935,15.5709,247.78,247.68,7.47270031]
[1732543226138,15.5709,247.78,247.68,8.07812772]
[1732543226351,15.5709,247.78,247.69,7.47270031]
[1732543226661,15.5709,247.78,247.74,7.47270031]
[1732543227856,15.5709,247.78,247.72,0.60524659]
[1732543228064,15.5709,247.78,247.74,7.47270031]
[1732543228267,15.5709,247.78,247.73,7.47270031]
[1732543229138,2.4211,247.82,247.74,7.47270031]
[1732543229455,18.0885,247.85,247.77,27.47270031]
[1732543229643,28.0885,247.85,247.77,27.47270031]
[1732543229844,28.0885,247.85,247.77,20.0]
[1732543230038,18.0885,247.85,247.78,7.47270031]
[1732543230354,15.6677,247.85,247.81,7.47270031]
[1732543230681,6.1295,247.88,247.81,7.47270031]
[1732543230850,8.55,247.88,247.8,7.47270031]
[1732543231053,8.55,247.88,247.79,7.47270031]
[1732543231664,17.6165,247.91,247.85,7.47270031]
[1732543232167,17.6165,247.91,247.84,7.47270031]
[1732543232356,17.6165,247.91,247.83,7.47270031]
[1732543233834,17.6165,247.91,247.84,20.0]
[1732543234043,10.0,247.89,247.76,7.47270031]
[1732543234373,10.0,247.87,247.74,7.47270031]
[1732543234553,10.0,247.87,247.75,7.47270031]
[1732543235073,2.4207,247.86,247.75,7.47270031]
[1732543235267,2.4207,247.86,247.76,7.47270031]
[1732543235563,2.4207,247.86,247.77,7.47270031]
[1732543235768,2.4207,247.86,247.79,20.0]
[1732543236351,2.4207,247.86,247.76,11.70605584]
[1732543236550,2.4207,247.86,247.79,20.0]
[1732543237042,2.4207,247.86,247.77,11.70605584]
[1732543237449,2.4207,247.86,247.76,11.70605584]
[1732543237866,2.4207,247.86,247.79,20.0]
[1732543238751,2.4207,247.86,247.78,20.0]
[1732543239151,2.4207,247.86,247.79,20.0]
[1732543239774,2.4207,247.86,247.78,20.0]
[1732543240680,6.0515,247.87,247.78,20.0]
[1732543240849,6.0515,247.87,247.75,11.70605584]
[1732543240850,18.4721,247.87,247.76,11.70605584]
[1732543241352,18.4721,247.87,247.77,11.70605584]
[1732543241549,18.4721,247.87,247.76,11.70605584]
[1732543241742,18.4721,247.87,247.79,20.0]
[1732543245977,12.4206,247.87,247.8,11.70605584]
[1732543246278,2.4206,247.87,247.78,11.70605584]
[1732543246479,2.4206,247.87,247.79,20.0]
[1732543246480,12.4206,247.87,247.79,20.0]
[1732543246867,18.9199,247.87,247.79,20.0]
[1732543247068,18.9199,247.87,247.75,11.70605584]
[1732543247069,24.9714,247.87,247.78,20.0]
[1732543248676,14.9714,247.87,247.78,20.0]
[1732543248882,24.9714,247.87,247.78,20.0]